Workbook

Sheet (はじめにお読み下さい)報告書作成手順
A2: 本報告書の作成手順
A4: 手順 | B4: 法人本部の作業 | C4: 各事業所の作業
A5: 1 | C5: 証憑書類を各補助事業ごとに整理（表紙＋領収証等の写し） ※整理方法については，別紙マニュアルP.6～7参照
A6: =A5+1 -> 2 | B6: 【実績報告書】へ宮城県から受け取った交付決定通知書に記載されている日付と指令番号を入力（紫色のセルに入力） ※１件の交付決定に対して１件の実績報告書を作成していただくことになります。複数回交付申請を行い，複数の交付決定を受けている法人は，それぞれの交付決定に対して，実績報告書を作成してください。 ※交付決定日や指令番号が不明な場合は，申請法人名・申請時期を明記の上，「covid-jisseki@pref.miyagi.lg.jp」までメールにてお問い合わせください。
A7: =A6+1 -> 3 | B7: 各事業所へ【個票●】及び【職員表】への情報入力，証憑書類の提出を依頼 ※個票及び職員表へ入力を依頼する情報及び証憑書類は，上記で入力した交付決定通知分となりますので，交付申請の際と同じ事業所を取りまとめてください。
A8: 4 | C8: 以下の作業を行った上で，法人本部へ証憑書類とともに送付 【個票●】 ・水色セル：必要情報を入力 ・緑色セル：プルダウンから選択 【職員表】 ・慰労金を受領した職員について，氏名や支払年月日などの情報を職員表に取りまとめ(水色セル：必要情報を入力，緑色セル：プルダウンから選択)
A9: 5 | B9: 各事業所の【個票】のシートを１つのExcelファイルに集約し，個票シート名を【個票●】（●は１からの通し番号）に修正
A10: 6 | B10: 各事業所の【職員表】を法人単位で一覧表として取りまとめ ※氏名（漢字、カナ），生年月日が一致する者がいる場合，「重複受給者確認用」欄に「可」と表示されません。 ※記入欄が不足する場合は，6行目～205行目を行ごとコピーし，206行目に右クリック→「コピーしたセルの挿入」で挿入。
A11: 7 | B11: 【個票●】の内容が，【実績額一覧】及び【法人実績額内訳】に正しく反映されていることを確認 ※【実績額一覧】及び【法人実績額内訳】は個票の入力内容をもとに自動入力されます。 ※実績額が交付決定額を下回る場合，差額分を返金していただきます。 なお，実績額が交付決定額を上回る場合でも，交付決定額以上の補助金を追加交付することはできません。
A12: 8 | B12: 【実績報告書】に，日付，法人住所，法人名，法人代表者の役職と氏名，報告内容に関する連絡先を入力後，印刷し，法人代表者印を押印
A13: 9 | B13: Excelファイル名を法人名に変更後，実績報告書一式のExcelファイルを電子媒体（CD等）へ格納 電子媒体（CD等）のディスク等の盤面に所要の事項（※）を記載したラベルを貼付又はフェルトペン等で記入 ※盤面に記載する事項 ・新型コロナ交付金(介護分)実績報告書 ・法人名 ・報告年月日（実績報告書に記載した日付）
A14: 10 | B14: 提出物 ①法人代表者印を押印した実績報告書の紙媒体 ②Excelファイルを格納した電子媒体(CD等) ③表紙を付けて整理した実績額の内訳が分かる証憑書類（領収証等の写し） ①～③を県に直接郵送で提出 郵送で提出する場合には，封筒に「新型コロナ支援交付金(介護分)実績報告書 在中」と明記 提出先：〒980-8570 仙台市青葉区本町３丁目８番１号 宮城県庁 長寿社会政策課 新型コロナ交付金(介護分)担当 あて

Sheet 実績報告書
AC3: 令和 | AD3: 2 | AF3: 年 | AG3: 12 | AI3: 月 | AJ3: 13 | AL3: 日
A5: 宮城県知事 村井 嘉浩 殿
V7: （法人住所） | W7: 仙台市青葉区本町３丁目８－１
V8: （法人名） | W8: 社会福祉法人宮城県 | AJ8: 印
V9: （役職・代表者名） | W9: 理事長 宮城 太郎
A11: 令和２年度新型コロナウイルス感染症緊急包括支援交付金（介護分）に係る実績報告書
B13: 令和 | D13: 2 | E13: 年 | F13: 11 | G13: 月 | H13: 24 | I13: 日付け宮城県（長政）指令第 | U13: 1185 | W13: 号で交付決定通知のありました新型コロナ
A14: ウイルス感染症緊急包括支援交付金（介護分）については，事業が完了しましたので，補助金等交付規則（昭和５１年宮城県規則第３６号）第１２条の規定により関係書類を添えて報告します。
AP18: =IF(BH20=BH21,"○","! 職員表の合計人数と個票の合計人数が一致しません") -> ○
AP20: 職員表計 | AS20: 20万円 | AV20: =COUNTIFS(職員表!O6:O1386,20) -> 0 | AX20: 人 | AY20: 5万円 | BB20: =COUNTIFS(職員表!O6:O1386,5) -> 5 | BD20: 人 | BE20: 合計 | BH20: =SUM(AV20,BB20) -> 5 | BJ20: 人
AP21: 個表計 | AS21: 20万円 | AV21: =SUM(実績額一覧!AJ5:AJ104) -> 0 | AX21: 人 | AY21: 5万円 | BB21: =SUM(実績額一覧!AK5:AK104) -> 5 | BD21: 人 | BE21: 合計 | BH21: =SUM(AV21,BB21) -> 5 | BJ21: 人
B23: （添付書類）
B24: １ 新型コロナウイルス感染症緊急包括支援交付金（介護分）に関する事業実績報告書
D25: （事業所単位）
B26: ２ 介護慰労金受給職員表（法人単位）
B27: ３ 事業所・施設別実績報告額一覧（サービス別一覧）
B28: ４ 法人実績額内訳
B29: ５ 証憑書類（領収証等の写し）
T36: 【報告内容に関する連絡先】
U38: 返納通知書等 書類送付先 | Y38: 郵便番号 | AC38: 980-8570
Y39: 住所 | AC39: 仙台市青葉区本町３丁目８－１
U40: 部署名・役職 | AC40: 法人本部・事務長
U41: 担当者氏名 | AC41: 長寿 花子
U42: 連絡先 | Y42: 電話番号 | AC42: 022-211-2549
Y43: e-mail | AC43: choujut2@pref.miyagi.lg.jp

Sheet 個票1
A3: 新型コロナウイルス感染症緊急包括支援交付金（介護分）に関する事業実績報告書（事業所単位） | CB3: （１）① | CE3: （２）②
CB4: 共通 | CD4: 単価 | CE4: 共通
A5: 施設概要 | CA5: 通所介護事業所（通常規模型） | CB5: 892 | CC5: /事業所 | CE5: 200 | CF5: /事業所
CA6: 通所介護事業所（大規模型（Ⅰ）） | CB6: 1137 | CC6: /事業所 | CE6: 200 | CF6: /事業所
A7: 介護保険事業所番号 | H7: 0420123456 | O7: 事業所名称 | T7: 特別養護老人ホーム長寿社会政策課 | CA7: 通所介護事業所（大規模型（Ⅱ）） | CB7: 1480 | CC7: /事業所 | CE7: 200 | CF7: /事業所
A8: 所在地 | D8: 郵便番号 | H8: 都道府県名 | L8: 住所 | Z8: 連絡先 | AC8: 電話番号 | AH8: 担当部署名 | CA8: 地域密着型通所介護事業所(療養通所介護事業所を含む) | CB8: 384 | CC8: /事業所 | CE8: 200 | CF8: /事業所
D9: 980-8570 | H9: 宮城県 | L9: 仙台市青葉区本町３丁目８－１ | AC9: 022-211-2549 | AH9: 施設支援班 | CA9: 認知症対応型通所介護事業所 | CB9: 375 | CC9: /事業所 | CE9: 200 | CF9: /事業所
A10: 提供サービス | H10: 介護老人福祉施設 | Z10: 定員 | AC10: 40 | AE10: 人 | CA10: 通所リハビリテーション事業所（通常規模型） | CB10: 939 | CC10: /事業所 | CE10: 200 | CF10: /事業所
A11: 事業区分 | J11: 介護慰労金事業 → 1を記載 | Z11: 感染対策費用助成事業 → 2を記載 | CA11: 通所リハビリテーション事業所（大規模型（Ⅰ）） | CB11: 1181 | CC11: /事業所 | CE11: 200 | CF11: /事業所
J12: 個別再開支援助成事業 → 3を記載 | Z12: 再開環境整備助成事業 → 4を記載 | CA12: 通所リハビリテーション事業所（大規模型（Ⅱ）） | CB12: 1885 | CC12: /事業所 | CE12: 200 | CF12: /事業所
CA13: 短期入所生活介護事業所 | CB13: =CD13*個票1!$AC$10 -> 1760 | CC13: /定員 | CD13: 44 | CE13: 200 | CF13: /事業所
A14: 支出実績額 | CA14: 短期入所療養介護事業所 | CB14: =CD14*個票1!$AC$10 -> 1760 | CC14: /定員 | CD14: 44 | CE14: 200 | CF14: /事業所
CA15: 訪問介護事業所 | CB15: 534 | CC15: /事業所 | CE15: 200 | CF15: /事業所
A16: １．介護慰労金事業 | I16: ※対象職員の氏名等について、職員表を作成すること。 | CA16: 訪問入浴介護事業所 | CB16: 564 | CC16: /事業所 | CE16: 200 | CF16: /事業所
AC17: 支給 実績額① | AG17: =(20*M19+5*V19)*10+AE19 -> 151 | AL17: 千円 | CA17: 訪問看護事業所 | CB17: 518 | CC17: /事業所 | CE17: 200 | CF17: /事業所
A18: 【慰労金を実際に支給した人数及びその振込手数料】 | CA18: 訪問リハビリテーション事業所 | CB18: 227 | CC18: /事業所 | CE18: 200 | CF18: /事業所
A19: 慰労金の区分・人数 | H19: 20万円対象 | P19: 人 | Q19: 5万円対象 | V19: 3 | Y19: 人 | Z19: 振込手数料 | AE19: 1 | AH19: 千円（千円未満切り捨て） | AO19: =IF(M19=0,,"有") -> 0 | CA19: 定期巡回・随時対応型訪問介護看護事業所 | CB19: 508 | CC19: /事業所 | CE19: 200 | CF19: /事業所
CA20: 夜間対応型訪問介護事業所 | CB20: 204 | CC20: /事業所 | CE20: 200 | CF20: /事業所
A21: 2．感染症対策を徹底した上での介護サービス提供支援事業 | X21: 補助上限額 | CA21: 居宅介護支援事業所 | CB21: 148 | CC21: /事業所 | CE21: 200 | CF21: /事業所
X22: =IFERROR(VLOOKUP(H10,個票1!CA5:CB39,2,FALSE),"") -> 1520 | AA22: 千円 | AC22: 支出 実績額② | AG22: =ROUNDDOWN(H34/1000,0) -> 1529 | AL22: 千円 | CA22: 福祉用具貸与事業所 | CB22: 148 | CC22: /事業所 | CE22: 200 | CF22: /事業所
A23: 【感染拡大防止対策や介護サービスの提供体制の確保のための経費として実際に要した額】 | CA23: 居宅療養管理指導事業所 | CB23: 33 | CC23: /事業所 | CE23: 200 | CF23: /事業所
A24: 科目 | H24: 支出額（円） | M24: 用途・品目・数量等 | CA24: 小規模多機能型居宅介護事業所 | CB24: 475 | CC24: /事業所 | CE24: 200 | CF24: /事業所
A25: 賃金・報酬 | CA25: 看護小規模多機能型居宅介護事業所 | CB25: 638 | CC25: /事業所 | CE25: 200 | CF25: /事業所
A26: 謝金 | CA26: 介護老人福祉施設 | CB26: =CD26*個票1!$AC$10 -> 1520 | CC26: /定員 | CD26: 38 | CE26: -
A27: 会議費 | CA27: 地域密着型介護老人福祉施設 | CB27: =CD27*個票1!$AC$10 -> 1600 | CC27: /定員 | CD27: 40 | CE27: -
A28: 旅費 | CA28: 介護老人保健施設 | CB28: =CD28*個票1!$AC$10 -> 1520 | CC28: /定員 | CD28: 38 | CE28: -
A29: 需用費 | H29: 446420 | M29: マスク（148,020円分），消毒用アルコール（198,800円分），フェイスシールド（39,800円分），手袋（59,800円分） | CA29: 介護医療院 | CB29: =CD29*個票1!$AC$10 -> 1920 | CC29: /定員 | CD29: 48 | CE29: -
A30: 役務費 | CA30: 介護療養型医療施設 | CB30: =CD30*個票1!$AC$10 -> 1720 | CC30: /定員 | CD30: 43 | CE30: -
A31: 委託料 | CA31: 認知症対応型共同生活介護事業所 | CB31: =CD31*個票1!$AC$10 -> 1440 | CC31: /定員 | CD31: 36 | CE31: -
A32: 使用料及び賃借料 | CA32: 養護老人ホーム（定員30人以上） | CB32: =CD32*個票1!$AC$10 -> 1480 | CC32: /定員 | CD32: 37 | CE32: -
A33: 備品購入費 | H33: 1082800 | M33: 非接触型体温計（598,800円×1台），面会用タブレット端末（96,800円×5台） | CA33: 養護老人ホーム（定員29人以下） | CB33: =CD33*個票1!$AC$10 -> 1400 | CC33: /定員 | CD33: 35 | CE33: -
A34: 合計 | H34: =SUM(H25:L33) -> 1529220 | M34: ※用途・品目・数量等を上記に入力しきれない場合は，別紙にまとめてください。 | CA34: 軽費老人ホーム（定員30人以上） | CB34: =CD34*個票1!$AC$10 -> 1480 | CC34: /定員 | CD34: 37 | CE34: -
CA35: 軽費老人ホーム（定員29人以下） | CB35: =CD35*個票1!$AC$10 -> 1400 | CC35: /定員 | CD35: 35 | CE35: -
A36: 3．在宅サービス事業所による利用者への再開支援への助成事業 | CA36: 有料老人ホーム（定員30人以上） | CB36: =CD36*個票1!$AC$10 -> 1480 | CC36: /定員 | CD36: 37 | CE36: -
AC37: 実績額③ | AG37: =IFERROR(IF(H10="居宅介護支援事業所",(X41*AI41+X42*AI42+X43*AI43+X44*AI44)/1000,(X39*AI39+X40*AI40)/1000),"") -> 0 | AL37: 千円 | CA37: 有料老人ホーム（定員29人以下） | CB37: =CD37*個票1!$AC$10 -> 1400 | CC37: /定員 | CD37: 35 | CE37: -
A38: 【在宅介護サービスの利用再開に向け，実際に事業所から働きかけを行った対象利用者数】 | AO38: =AG36-AG37 -> 0 | CA38: サービス付き高齢者向け住宅（定員30人以上） | CB38: =CD38*個票1!$AC$10 -> 1480 | CC38: /定員 | CD38: 37 | CE38: -
A39: 利用者１人あたり単価 （居宅介護支援以外共通） | K39: 電話による確認 | X39: =IF($H$10="介護予防・生活支援サービス事業の事業者","",1500) -> 1500 | AA39: 円 | AC39: 対象利用者数（実績） | AL39: 人 | CA39: サービス付き高齢者向け住宅（定員29人以下） | CB39: =CD39*個票1!$AC$10 -> 1400 | CC39: /定員 | CD39: 35 | CE39: -
K40: 訪問による確認 | X40: =IF($H$10="介護予防・生活支援サービス事業の事業者","",3000) -> 3000 | AA40: 円 | AC40: 対象利用者数（実績） | AL40: 人 | CA40: 介護予防・生活支援サービス事業の事業者
B41: 居宅介護支援のみ 右欄に記載 | K41: 電話による確認 | X41: =IF($H$10="介護予防・生活支援サービス事業の事業者","",1500) -> 1500 | AA41: 円 | AC41: 対象利用者数（実績） | AL41: 人
K42: 電話による確認（看護師等が協力した場合） | X42: =IF($H$10="介護予防・生活支援サービス事業の事業者","",4500) -> 4500 | AA42: 円 | AC42: 対象利用者数（実績） | AL42: 人
K43: 訪問による確認 | X43: =IF($H$10="介護予防・生活支援サービス事業の事業者","",3000) -> 3000 | AA43: 円 | AC43: 対象利用者数（実績） | AL43: 人
K44: 訪問による確認（看護師等が協力した場合） | X44: =IF($H$10="介護予防・生活支援サービス事業の事業者","",6000) -> 6000 | AA44: 円 | AC44: 対象利用者数（実績） | AL44: 人
A46: 4．在宅サービス事業所における環境整備への助成事業 | X46: 補助上限額
X47: =IFERROR(VLOOKUP(H10,個票1!CA5:CE39,5,FALSE),"") -> - | AA47: 千円 | AC47: 支出 実績額④ | AG47: =ROUNDDOWN(H59/1000,0) -> 0 | AL47: 千円
A48: 【在宅サービス事業所における環境整備のための経費として実際に要した額】 | AO48: =AG46-AG47 -> 0
A49: 科目 | H49: 支出額（円） | M49: 用途・品目・数量等
A50: 賃金・報酬
A51: 謝金
A52: 会議費
A53: 旅費
A54: 需用費
A55: 役務費
A56: 委託料
A57: 使用料及び賃借料
A58: 備品購入費
A59: 合計 | H59: =SUM(H50:L58) -> 0 | M59: ※用途・品目・数量等を上記に入力しきれない場合は，別紙にまとめてください。

Sheet 個票2
A3: 新型コロナウイルス感染症緊急包括支援交付金（介護分）に関する事業実績報告書（事業所単位） | CB3: （１）① | CE3: （２）②
CB4: 共通 | CD4: 単価 | CE4: 共通
A5: 施設概要 | CA5: 通所介護事業所（通常規模型） | CB5: 892 | CC5: /事業所 | CE5: 200 | CF5: /事業所
CA6: 通所介護事業所（大規模型（Ⅰ）） | CB6: 1137 | CC6: /事業所 | CE6: 200 | CF6: /事業所
A7: 介護保険事業所番号 | H7: 0420123999 | O7: 事業所名称 | T7: 居宅介護支援事業所長寿社会政策課 | CA7: 通所介護事業所（大規模型（Ⅱ）） | CB7: 1480 | CC7: /事業所 | CE7: 200 | CF7: /事業所
A8: 所在地 | D8: 郵便番号 | H8: 都道府県名 | L8: 住所 | Z8: 連絡先 | AC8: 電話番号 | AH8: 担当部署名 | CA8: 地域密着型通所介護事業所(療養通所介護事業所を含む) | CB8: 384 | CC8: /事業所 | CE8: 200 | CF8: /事業所
D9: 980-8570 | H9: 宮城県 | L9: 仙台市青葉区本町３丁目８－１ | AC9: 022-211-2549 | AH9: 施設支援班 | CA9: 認知症対応型通所介護事業所 | CB9: 375 | CC9: /事業所 | CE9: 200 | CF9: /事業所
A10: 提供サービス | H10: 居宅介護支援事業所 | Z10: 定員 | AE10: 人 | CA10: 通所リハビリテーション事業所（通常規模型） | CB10: 939 | CC10: /事業所 | CE10: 200 | CF10: /事業所
A11: 事業区分 | J11: 介護慰労金事業 → 1を記載 | Z11: 感染対策費用助成事業 → 2を記載 | CA11: 通所リハビリテーション事業所（大規模型（Ⅰ）） | CB11: 1181 | CC11: /事業所 | CE11: 200 | CF11: /事業所
J12: 個別再開支援助成事業 → 3を記載 | Z12: 再開環境整備助成事業 → 4を記載 | CA12: 通所リハビリテーション事業所（大規模型（Ⅱ）） | CB12: 1885 | CC12: /事業所 | CE12: 200 | CF12: /事業所
CA13: 短期入所生活介護事業所 | CB13: =CD13*個票2!$AC$10 -> 0 | CC13: /定員 | CD13: 44 | CE13: 200 | CF13: /事業所
A14: 支出実績額 | CA14: 短期入所療養介護事業所 | CB14: =CD14*個票2!$AC$10 -> 0 | CC14: /定員 | CD14: 44 | CE14: 200 | CF14: /事業所
CA15: 訪問介護事業所 | CB15: 534 | CC15: /事業所 | CE15: 200 | CF15: /事業所
A16: １．介護慰労金事業 | I16: ※対象職員の氏名等について、職員表を作成すること。 | CA16: 訪問入浴介護事業所 | CB16: 564 | CC16: /事業所 | CE16: 200 | CF16: /事業所
AC17: 支給 実績額① | AG17: =(20*M19+5*V19)*10+AE19 -> 100 | AL17: 千円 | CA17: 訪問看護事業所 | CB17: 518 | CC17: /事業所 | CE17: 200 | CF17: /事業所
A18: 【慰労金を実際に支給した人数及びその振込手数料】 | CA18: 訪問リハビリテーション事業所 | CB18: 227 | CC18: /事業所 | CE18: 200 | CF18: /事業所
A19: 慰労金の区分・人数 | H19: 20万円対象 | P19: 人 | Q19: 5万円対象 | V19: 2 | Y19: 人 | Z19: 振込手数料 | AH19: 千円（千円未満切り捨て） | AO19: =IF(M19=0,,"有") -> 0 | CA19: 定期巡回・随時対応型訪問介護看護事業所 | CB19: 508 | CC19: /事業所 | CE19: 200 | CF19: /事業所
CA20: 夜間対応型訪問介護事業所 | CB20: 204 | CC20: /事業所 | CE20: 200 | CF20: /事業所
A21: 2．感染症対策を徹底した上での介護サービス提供支援事業 | X21: 補助上限額 | CA21: 居宅介護支援事業所 | CB21: 148 | CC21: /事業所 | CE21: 200 | CF21: /事業所
X22: =IFERROR(VLOOKUP(H10,個票1!CA5:CB39,2,FALSE),"") -> 148 | AA22: 千円 | AC22: 支出 実績額② | AG22: =ROUNDDOWN(H34/1000,0) -> 177 | AL22: 千円 | CA22: 福祉用具貸与事業所 | CB22: 148 | CC22: /事業所 | CE22: 200 | CF22: /事業所
A23: 【感染拡大防止対策や介護サービスの提供体制の確保のための経費として実際に要した額】 | CA23: 居宅療養管理指導事業所 | CB23: 33 | CC23: /事業所 | CE23: 200 | CF23: /事業所
A24: 科目 | H24: 支出額（円） | M24: 用途・品目・数量等 | CA24: 小規模多機能型居宅介護事業所 | CB24: 475 | CC24: /事業所 | CE24: 200 | CF24: /事業所
A25: 賃金・報酬 | CA25: 看護小規模多機能型居宅介護事業所 | CB25: 638 | CC25: /事業所 | CE25: 200 | CF25: /事業所
A26: 謝金 | CA26: 介護老人福祉施設 | CB26: =CD26*個票2!$AC$10 -> 0 | CC26: /定員 | CD26: 38 | CE26: -
A27: 会議費 | CA27: 地域密着型介護老人福祉施設 | CB27: =CD27*個票2!$AC$10 -> 0 | CC27: /定員 | CD27: 40 | CE27: -
A28: 旅費 | CA28: 介護老人保健施設 | CB28: =CD28*個票2!$AC$10 -> 0 | CC28: /定員 | CD28: 38 | CE28: -
A29: 需用費 | H29: 177880 | M29: マスク（79,880円分），消毒用アルコール（98,000円分） | CA29: 介護医療院 | CB29: =CD29*個票2!$AC$10 -> 0 | CC29: /定員 | CD29: 48 | CE29: -
A30: 役務費 | CA30: 介護療養型医療施設 | CB30: =CD30*個票2!$AC$10 -> 0 | CC30: /定員 | CD30: 43 | CE30: -
A31: 委託料 | CA31: 認知症対応型共同生活介護事業所 | CB31: =CD31*個票2!$AC$10 -> 0 | CC31: /定員 | CD31: 36 | CE31: -
A32: 使用料及び賃借料 | CA32: 養護老人ホーム（定員30人以上） | CB32: =CD32*個票2!$AC$10 -> 0 | CC32: /定員 | CD32: 37 | CE32: -
A33: 備品購入費 | CA33: 養護老人ホーム（定員29人以下） | CB33: =CD33*個票2!$AC$10 -> 0 | CC33: /定員 | CD33: 35 | CE33: -
A34: 合計 | H34: =SUM(H25:L33) -> 177880 | M34: ※用途・品目・数量等を上記に入力しきれない場合は，別紙にまとめてください。 | CA34: 軽費老人ホーム（定員30人以上） | CB34: =CD34*個票2!$AC$10 -> 0 | CC34: /定員 | CD34: 37 | CE34: -
CA35: 軽費老人ホーム（定員29人以下） | CB35: =CD35*個票2!$AC$10 -> 0 | CC35: /定員 | CD35: 35 | CE35: -
A36: 3．在宅サービス事業所による利用者への再開支援への助成事業 | CA36: 有料老人ホーム（定員30人以上） | CB36: =CD36*個票2!$AC$10 -> 0 | CC36: /定員 | CD36: 37 | CE36: -
AC37: 実績額③ | AG37: =IFERROR(IF(H10="居宅介護支援事業所",(X41*AI41+X42*AI42+X43*AI43+X44*AI44)/1000,(X39*AI39+X40*AI40)/1000),"") -> 19.5 | AL37: 千円 | CA37: 有料老人ホーム（定員29人以下） | CB37: =CD37*個票2!$AC$10 -> 0 | CC37: /定員 | CD37: 35 | CE37: -
A38: 【在宅介護サービスの利用再開に向け，実際に事業所から働きかけを行った対象利用者数】 | AO38: =AG36-AG37 -> -19.5 | CA38: サービス付き高齢者向け住宅（定員30人以上） | CB38: =CD38*個票2!$AC$10 -> 0 | CC38: /定員 | CD38: 37 | CE38: -
A39: 利用者１人あたり単価 （居宅介護支援以外共通） | K39: 電話による確認 | X39: =IF($H$10="介護予防・生活支援サービス事業の事業者","",1500) -> 1500 | AA39: 円 | AC39: 対象利用者数（実績） | AL39: 人 | CA39: サービス付き高齢者向け住宅（定員29人以下） | CB39: =CD39*個票2!$AC$10 -> 0 | CC39: /定員 | CD39: 35 | CE39: -
K40: 訪問による確認 | X40: =IF($H$10="介護予防・生活支援サービス事業の事業者","",3000) -> 3000 | AA40: 円 | AC40: 対象利用者数（実績） | AL40: 人 | CA40: 介護予防・生活支援サービス事業の事業者
B41: 居宅介護支援のみ 右欄に記載 | K41: 電話による確認 | X41: =IF($H$10="介護予防・生活支援サービス事業の事業者","",1500) -> 1500 | AA41: 円 | AC41: 対象利用者数（実績） | AI41: 2 | AL41: 人
K42: 電話による確認（看護師等が協力した場合） | X42: =IF($H$10="介護予防・生活支援サービス事業の事業者","",4500) -> 4500 | AA42: 円 | AC42: 対象利用者数（実績） | AI42: 1 | AL42: 人
K43: 訪問による確認 | X43: =IF($H$10="介護予防・生活支援サービス事業の事業者","",3000) -> 3000 | AA43: 円 | AC43: 対象利用者数（実績） | AI43: 2 | AL43: 人
K44: 訪問による確認（看護師等が協力した場合） | X44: =IF($H$10="介護予防・生活支援サービス事業の事業者","",6000) -> 6000 | AA44: 円 | AC44: 対象利用者数（実績） | AI44: 1 | AL44: 人
A46: 4．在宅サービス事業所における環境整備への助成事業 | X46: 補助上限額
X47: =IFERROR(VLOOKUP(H10,個票1!CA5:CE39,5,FALSE),"") -> 200 | AA47: 千円 | AC47: 支出 実績額④ | AG47: =ROUNDDOWN(H59/1000,0) -> 152 | AL47: 千円
A48: 【在宅サービス事業所における環境整備のための経費として実際に要した額】 | AO48: =AG46-AG47 -> -152
A49: 科目 | H49: 支出額（円） | M49: 用途・品目・数量等
A50: 賃金・報酬
A51: 謝金
A52: 会議費
A53: 旅費
A54: 需用費
A55: 役務費
A56: 委託料
A57: 使用料及び賃借料
A58: 備品購入費 | H58: 152400 | M58: 飛散防止パネル（50,800円×3台）
A59: 合計 | H59: =SUM(H50:L58) -> 152400 | M59: ※用途・品目・数量等を上記に入力しきれない場合は，別紙にまとめてください。

Sheet 職員表
A1: 介護慰労金受給職員表（法人単位）
A3: ※ 本表は法人単位でまとめて記載すること。
B4: 氏名 （漢字） | C4: 氏名 （全角カナ） | D4: 生年月日 （西暦） | G4: 本人の住所 | H4: 主たる勤務先 | K4: 分類 | O4: 慰労金 (万円) | P4: 確認事項 | T4: 支払実績
E5: （確認用） | F5: （確認用） | H5: 事業所番号 | I5: サービス種類コード | J5: 事業所・施設の名称 | K5: 施設区分 | L5: 対応区分 | M5: (計算用) | N5: 他の施設等との期間通算がある場合その施設名 | P5: 委任状の有無 | Q5: 他法人での慰労金の受給の有無 | R5: 業務委託による 従事者 | S5: 重複 受給者確認用 | T5: 支払年月日 (西暦) | U5: 支払金額 （円）
A6: =ROW()-5 -> 1 | B6: 長寿一郎 | C6: チョウジュイチロウ | D6: 1970-01-01 | E6: =B6&C6&D6 -> 長寿一郎チョウジュイチロウ25569 | F6: =IF(E6="","",COUNTIF($E$6:$E$1385,E6)) -> 1 | G6: 仙台市青葉区本町３丁目８－１ | H6: 0420123456 | I6: 51 | J6: 特別養護老人ホーム長寿社会政策課 | K6: その他の施設 | L6: 対象期間に10日以上勤務 | M6: =K6&L6 -> その他の施設対象期間に10日以上勤務 | O6: =IFERROR(VLOOKUP(M6,計算用!$A$8:$B$15,2,FALSE),"") -> 5 | P6: あり | Q6: なし | S6: =IF(F6>=2,"","可") -> 可 | T6: 2020-12-05 | U6: 50000
A7: =ROW()-5 -> 2 | B7: 長寿二郎 | C7: チョウジュジロウ | D7: 1974-02-10 | E7: =B7&C7&D7 -> 長寿二郎チョウジュジロウ27070 | F7: =IF(E7="","",COUNTIF($E$6:$E$1385,E7)) -> 1 | G7: 仙台市青葉区本町３丁目８－１ | H7: 0420123456 | I7: 51 | J7: 特別養護老人ホーム長寿社会政策課 | K7: その他の施設 | L7: 対象期間に10日以上勤務 | M7: =K7&L7 -> その他の施設対象期間に10日以上勤務 | O7: =IFERROR(VLOOKUP(M7,計算用!$A$8:$B$15,2,FALSE),"") -> 5 | P7: あり | Q7: なし | S7: =IF(F7>=2,"","可") -> 可 | T7: 2020-12-05 | U7: 50000
A8: 3 | B8: 長寿三郎 | C8: チョウジュサブロウ | D8: 1978-03-20 | E8: =B8&C8&D8 -> 長寿三郎チョウジュサブロウ28569 | F8: =IF(E8="","",COUNTIF($E$6:$E$1385,E8)) -> 1 | G8: 仙台市青葉区本町３丁目８－１ | H8: 0420123456 | I8: 51 | J8: 特別養護老人ホーム長寿社会政策課 | K8: その他の施設 | L8: 対象期間に10日以上勤務 | M8: =K8&L8 -> その他の施設対象期間に10日以上勤務 | O8: =IFERROR(VLOOKUP(M8,計算用!$A$8:$B$15,2,FALSE),"") -> 5 | P8: あり | Q8: なし | R8: 該当 | S8: =IF(F8>=2,"","可") -> 可 | T8: 2020-12-05 | U8: 50000
A9: 4 | B9: 長寿四郎 | C9: チョウジュシロウ | D9: 1982-04-12 | E9: =B9&C9&D9 -> 長寿四郎チョウジュシロウ30053 | F9: =IF(E9="","",COUNTIF($E$6:$E$1385,E9)) -> 1 | G9: 仙台市青葉区本町３丁目８－１ | H9: 0420123999 | I9: 43 | J9: 居宅介護支援事業所長寿社会政策課 | K9: その他の施設 | L9: 対象期間に10日以上勤務 | M9: =K9&L9 -> その他の施設対象期間に10日以上勤務 | O9: =IFERROR(VLOOKUP(M9,計算用!$A$8:$B$15,2,FALSE),"") -> 5 | P9: あり | Q9: なし | S9: =IF(F9>=2,"","可") -> 可 | T9: 2020-12-05 | U9: 50000
A10: 5 | B10: 長寿五郎 | C10: チョウジュゴロウ | D10: 1988-12-13 | E10: =B10&C10&D10 -> 長寿五郎チョウジュゴロウ32490 | F10: =IF(E10="","",COUNTIF($E$6:$E$1385,E10)) -> 1 | G10: 仙台市青葉区本町３丁目８－１ | H10: 0420123999 | I10: 43 | J10: 居宅介護支援事業所長寿社会政策課 | K10: その他の施設 | L10: 対象期間に10日以上勤務 | M10: =K10&L10 -> その他の施設対象期間に10日以上勤務 | O10: =IFERROR(VLOOKUP(M10,計算用!$A$8:$B$15,2,FALSE),"") -> 5 | P10: あり | Q10: なし | S10: =IF(F10>=2,"","可") -> 可 | T10: 2020-12-05 | U10: 50000
A11: 6 | E11: =B11&C11&D11 ->  | F11: =IF(E11="","",COUNTIF($E$6:$E$1385,E11)) ->  | M11: =K11&L11 ->  | O11: =IFERROR(VLOOKUP(M11,計算用!$A$8:$B$15,2,FALSE),"") ->  | S11: =IF(F11>=2,"","可") -> 
A12: 7 | O12: =IFERROR(VLOOKUP(M12,計算用!$A$8:$B$15,2,FALSE),"") -> 
A13: 8 | O13: =IFERROR(VLOOKUP(M13,計算用!$A$8:$B$15,2,FALSE),"") -> 
A14: 9 | M14: =K14&L14 ->  | O14: =IFERROR(VLOOKUP(M14,計算用!$A$8:$B$15,2,FALSE),"") -> 
A15: 10 | O15: =IFERROR(VLOOKUP(M15,計算用!$A$8:$B$15,2,FALSE),"") -> 
A16: 11 | O16: =IFERROR(VLOOKUP(M16,計算用!$A$8:$B$15,2,FALSE),"") -> 
A17: 12 | O17: =IFERROR(VLOOKUP(M17,計算用!$A$8:$B$15,2,FALSE),"") -> 
A18: 13 | O18: =IFERROR(VLOOKUP(M18,計算用!$A$8:$B$15,2,FALSE),"") -> 
A19: 14 | O19: =IFERROR(VLOOKUP(M19,計算用!$A$8:$B$15,2,FALSE),"") -> 
A20: 15 | O20: =IFERROR(VLOOKUP(M20,計算用!$A$8:$B$15,2,FALSE),"") -> 
A21: 16 | O21: =IFERROR(VLOOKUP(M21,計算用!$A$8:$B$15,2,FALSE),"") -> 
A22: 17 | O22: =IFERROR(VLOOKUP(M22,計算用!$A$8:$B$15,2,FALSE),"") -> 
A23: 18 | O23: =IFERROR(VLOOKUP(M23,計算用!$A$8:$B$15,2,FALSE),"") -> 
A24: 19 | O24: =IFERROR(VLOOKUP(M24,計算用!$A$8:$B$15,2,FALSE),"") -> 
A25: 20 | O25: =IFERROR(VLOOKUP(M25,計算用!$A$8:$B$15,2,FALSE),"") -> 
A26: 21 | O26: =IFERROR(VLOOKUP(M26,計算用!$A$8:$B$15,2,FALSE),"") -> 
A27: 22 | O27: =IFERROR(VLOOKUP(M27,計算用!$A$8:$B$15,2,FALSE),"") -> 
A28: 23 | O28: =IFERROR(VLOOKUP(M28,計算用!$A$8:$B$15,2,FALSE),"") -> 
A29: 24 | O29: =IFERROR(VLOOKUP(M29,計算用!$A$8:$B$15,2,FALSE),"") -> 
A30: 25 | O30: =IFERROR(VLOOKUP(M30,計算用!$A$8:$B$15,2,FALSE),"") -> 
A31: 26 | O31: =IFERROR(VLOOKUP(M31,計算用!$A$8:$B$15,2,FALSE),"") -> 
A32: 27 | O32: =IFERROR(VLOOKUP(M32,計算用!$A$8:$B$15,2,FALSE),"") -> 
A33: 28 | O33: =IFERROR(VLOOKUP(M33,計算用!$A$8:$B$15,2,FALSE),"") -> 
A34: 29 | O34: =IFERROR(VLOOKUP(M34,計算用!$A$8:$B$15,2,FALSE),"") -> 
A35: 30 | O35: =IFERROR(VLOOKUP(M35,計算用!$A$8:$B$15,2,FALSE),"") -> 
A36: 31 | O36: =IFERROR(VLOOKUP(M36,計算用!$A$8:$B$15,2,FALSE),"") -> 
A37: 32 | O37: =IFERROR(VLOOKUP(M37,計算用!$A$8:$B$15,2,FALSE),"") -> 
A38: 33 | O38: =IFERROR(VLOOKUP(M38,計算用!$A$8:$B$15,2,FALSE),"") ->  | S38: =IF(F38>=2,"","可") -> 
A39: 34 | O39: =IFERROR(VLOOKUP(M39,計算用!$A$8:$B$15,2,FALSE),"") -> 
A40: 35 | O40: =IFERROR(VLOOKUP(M40,計算用!$A$8:$B$15,2,FALSE),"") -> 
A41: 36 | O41: =IFERROR(VLOOKUP(M41,計算用!$A$8:$B$15,2,FALSE),"") -> 
A42: 37 | O42: =IFERROR(VLOOKUP(M42,計算用!$A$8:$B$15,2,FALSE),"") -> 
A43: 38 | O43: =IFERROR(VLOOKUP(M43,計算用!$A$8:$B$15,2,FALSE),"") -> 
A44: 39 | O44: =IFERROR(VLOOKUP(M44,計算用!$A$8:$B$15,2,FALSE),"") -> 
A45: 40 | O45: =IFERROR(VLOOKUP(M45,計算用!$A$8:$B$15,2,FALSE),"") -> 
A46: 41 | O46: =IFERROR(VLOOKUP(M46,計算用!$A$8:$B$15,2,FALSE),"") -> 
A47: 42 | O47: =IFERROR(VLOOKUP(M47,計算用!$A$8:$B$15,2,FALSE),"") -> 
A48: 43 | O48: =IFERROR(VLOOKUP(M48,計算用!$A$8:$B$15,2,FALSE),"") -> 
A49: 44 | O49: =IFERROR(VLOOKUP(M49,計算用!$A$8:$B$15,2,FALSE),"") -> 
A50: 45 | O50: =IFERROR(VLOOKUP(M50,計算用!$A$8:$B$15,2,FALSE),"") -> 
A51: 46 | O51: =IFERROR(VLOOKUP(M51,計算用!$A$8:$B$15,2,FALSE),"") -> 
A52: 47 | O52: =IFERROR(VLOOKUP(M52,計算用!$A$8:$B$15,2,FALSE),"") -> 
A53: 48 | O53: =IFERROR(VLOOKUP(M53,計算用!$A$8:$B$15,2,FALSE),"") -> 
A54: 49 | O54: =IFERROR(VLOOKUP(M54,計算用!$A$8:$B$15,2,FALSE),"") -> 
A55: 50 | O55: =IFERROR(VLOOKUP(M55,計算用!$A$8:$B$15,2,FALSE),"") -> 
A56: 51 | O56: =IFERROR(VLOOKUP(M56,計算用!$A$8:$B$15,2,FALSE),"") -> 
A57: 52 | O57: =IFERROR(VLOOKUP(M57,計算用!$A$8:$B$15,2,FALSE),"") -> 
A58: 53 | O58: =IFERROR(VLOOKUP(M58,計算用!$A$8:$B$15,2,FALSE),"") -> 
A59: 54 | O59: =IFERROR(VLOOKUP(M59,計算用!$A$8:$B$15,2,FALSE),"") -> 
A60: 55 | O60: =IFERROR(VLOOKUP(M60,計算用!$A$8:$B$15,2,FALSE),"") -> 
A61: 56 | O61: =IFERROR(VLOOKUP(M61,計算用!$A$8:$B$15,2,FALSE),"") -> 
A62: 57 | O62: =IFERROR(VLOOKUP(M62,計算用!$A$8:$B$15,2,FALSE),"") -> 
A63: 58 | O63: =IFERROR(VLOOKUP(M63,計算用!$A$8:$B$15,2,FALSE),"") -> 
A64: 59 | O64: =IFERROR(VLOOKUP(M64,計算用!$A$8:$B$15,2,FALSE),"") -> 
A65: 60 | O65: =IFERROR(VLOOKUP(M65,計算用!$A$8:$B$15,2,FALSE),"") -> 
A66: 61 | O66: =IFERROR(VLOOKUP(M66,計算用!$A$8:$B$15,2,FALSE),"") -> 
A67: 62 | O67: =IFERROR(VLOOKUP(M67,計算用!$A$8:$B$15,2,FALSE),"") -> 
A68: 63 | O68: =IFERROR(VLOOKUP(M68,計算用!$A$8:$B$15,2,FALSE),"") -> 
A69: 64 | O69: =IFERROR(VLOOKUP(M69,計算用!$A$8:$B$15,2,FALSE),"") -> 
A70: 65 | O70: =IFERROR(VLOOKUP(M70,計算用!$A$8:$B$15,2,FALSE),"") ->  | S70: =IF(F70>=2,"","可") -> 
A71: =ROW()-5 -> 66 | E71: =B71&C71&D71 ->  | F71: =IF(E71="","",COUNTIF($E$6:$E$1385,E71)) ->  | M71: =K71&L71 ->  | O71: =IFERROR(VLOOKUP(M71,計算用!$A$8:$B$15,2,FALSE),"") -> 
A72: 67 | O72: =IFERROR(VLOOKUP(M72,計算用!$A$8:$B$15,2,FALSE),"") -> 
A73: 68 | O73: =IFERROR(VLOOKUP(M73,計算用!$A$8:$B$15,2,FALSE),"") -> 
A74: 69 | O74: =IFERROR(VLOOKUP(M74,計算用!$A$8:$B$15,2,FALSE),"") -> 
A75: 70 | O75: =IFERROR(VLOOKUP(M75,計算用!$A$8:$B$15,2,FALSE),"") -> 
A76: 71 | O76: =IFERROR(VLOOKUP(M76,計算用!$A$8:$B$15,2,FALSE),"") -> 
A77: 72 | O77: =IFERROR(VLOOKUP(M77,計算用!$A$8:$B$15,2,FALSE),"") -> 
A78: 73 | O78: =IFERROR(VLOOKUP(M78,計算用!$A$8:$B$15,2,FALSE),"") -> 
A79: 74 | O79: =IFERROR(VLOOKUP(M79,計算用!$A$8:$B$15,2,FALSE),"") -> 
A80: 75 | O80: =IFERROR(VLOOKUP(M80,計算用!$A$8:$B$15,2,FALSE),"") -> 
A81: 76 | O81: =IFERROR(VLOOKUP(M81,計算用!$A$8:$B$15,2,FALSE),"") -> 
A82: 77 | O82: =IFERROR(VLOOKUP(M82,計算用!$A$8:$B$15,2,FALSE),"") -> 
A83: 78 | O83: =IFERROR(VLOOKUP(M83,計算用!$A$8:$B$15,2,FALSE),"") -> 
A84: 79 | O84: =IFERROR(VLOOKUP(M84,計算用!$A$8:$B$15,2,FALSE),"") -> 
A85: 80 | O85: =IFERROR(VLOOKUP(M85,計算用!$A$8:$B$15,2,FALSE),"") -> 
A86: =ROW()-5 -> 81 | E86: =B86&C86&D86 ->  | F86: =IF(E86="","",COUNTIF($E$6:$E$1385,E86)) ->  | M86: =K86&L86 ->  | O86: =IFERROR(VLOOKUP(M86,計算用!$A$8:$B$15,2,FALSE),"") ->  | S86: =IF(F86>=2,"","可") -> 
A87: =ROW()-5 -> 82 | E87: =B87&C87&D87 ->  | F87: =IF(E87="","",COUNTIF($E$6:$E$1385,E87)) ->  | O87: =IFERROR(VLOOKUP(M87,計算用!$A$8:$B$15,2,FALSE),"") ->  | S87: =IF(F87>=2,"","可") -> 
A88: 83 | E88: =B88&C88&D88 ->  | F88: =IF(E88="","",COUNTIF($E$6:$E$1385,E88)) ->  | O88: =IFERROR(VLOOKUP(M88,計算用!$A$8:$B$15,2,FALSE),"") ->  | S88: =IF(F88>=2,"","可") -> 
A89: 84 | E89: =B89&C89&D89 ->  | F89: =IF(E89="","",COUNTIF($E$6:$E$1385,E89)) ->  | O89: =IFERROR(VLOOKUP(M89,計算用!$A$8:$B$15,2,FALSE),"") ->  | S89: =IF(F89>=2,"","可") -> 
A90: 85 | E90: =B90&C90&D90 ->  | F90: =IF(E90="","",COUNTIF($E$6:$E$1385,E90)) ->  | O90: =IFERROR(VLOOKUP(M90,計算用!$A$8:$B$15,2,FALSE),"") ->  | S90: =IF(F90>=2,"","可") -> 
A91: 86 | E91: =B91&C91&D91 ->  | O91: =IFERROR(VLOOKUP(M91,計算用!$A$8:$B$15,2,FALSE),"") ->  | S91: =IF(F91>=2,"","可") -> 
A92: 87 | O92: =IFERROR(VLOOKUP(M92,計算用!$A$8:$B$15,2,FALSE),"") -> 
A93: 88 | O93: =IFERROR(VLOOKUP(M93,計算用!$A$8:$B$15,2,FALSE),"") -> 
A94: 89 | O94: =IFERROR(VLOOKUP(M94,計算用!$A$8:$B$15,2,FALSE),"") -> 
A95: 90 | M95: =K95&L95 ->  | O95: =IFERROR(VLOOKUP(M95,計算用!$A$8:$B$15,2,FALSE),"") -> 
A96: 91 | O96: =IFERROR(VLOOKUP(M96,計算用!$A$8:$B$15,2,FALSE),"") -> 
A97: 92 | O97: =IFERROR(VLOOKUP(M97,計算用!$A$8:$B$15,2,FALSE),"") -> 
A98: 93 | O98: =IFERROR(VLOOKUP(M98,計算用!$A$8:$B$15,2,FALSE),"") -> 
A99: 94 | O99: =IFERROR(VLOOKUP(M99,計算用!$A$8:$B$15,2,FALSE),"") -> 
A100: 95 | O100: =IFERROR(VLOOKUP(M100,計算用!$A$8:$B$15,2,FALSE),"") -> 
A101: 96 | O101: =IFERROR(VLOOKUP(M101,計算用!$A$8:$B$15,2,FALSE),"") -> 
A102: 97 | O102: =IFERROR(VLOOKUP(M102,計算用!$A$8:$B$15,2,FALSE),"") -> 
A103: 98 | O103: =IFERROR(VLOOKUP(M103,計算用!$A$8:$B$15,2,FALSE),"") -> 
A104: 99 | O104: =IFERROR(VLOOKUP(M104,計算用!$A$8:$B$15,2,FALSE),"") -> 
A105: 100 | O105: =IFERROR(VLOOKUP(M105,計算用!$A$8:$B$15,2,FALSE),"") -> 
A106: 101 | O106: =IFERROR(VLOOKUP(M106,計算用!$A$8:$B$15,2,FALSE),"") -> 
A107: 102 | O107: =IFERROR(VLOOKUP(M107,計算用!$A$8:$B$15,2,FALSE),"") -> 
A108: 103 | O108: =IFERROR(VLOOKUP(M108,計算用!$A$8:$B$15,2,FALSE),"") -> 
A109: 104 | O109: =IFERROR(VLOOKUP(M109,計算用!$A$8:$B$15,2,FALSE),"") -> 
A110: 105 | O110: =IFERROR(VLOOKUP(M110,計算用!$A$8:$B$15,2,FALSE),"") -> 
A111: 106 | O111: =IFERROR(VLOOKUP(M111,計算用!$A$8:$B$15,2,FALSE),"") -> 
A112: 107 | O112: =IFERROR(VLOOKUP(M112,計算用!$A$8:$B$15,2,FALSE),"") -> 
A113: 108 | O113: =IFERROR(VLOOKUP(M113,計算用!$A$8:$B$15,2,FALSE),"") -> 
A114: 109 | O114: =IFERROR(VLOOKUP(M114,計算用!$A$8:$B$15,2,FALSE),"") -> 
A115: 110 | O115: =IFERROR(VLOOKUP(M115,計算用!$A$8:$B$15,2,FALSE),"") -> 
A116: 111 | O116: =IFERROR(VLOOKUP(M116,計算用!$A$8:$B$15,2,FALSE),"") -> 
A117: 112 | O117: =IFERROR(VLOOKUP(M117,計算用!$A$8:$B$15,2,FALSE),"") -> 
A118: 113 | O118: =IFERROR(VLOOKUP(M118,計算用!$A$8:$B$15,2,FALSE),"") -> 
A119: 114 | O119: =IFERROR(VLOOKUP(M119,計算用!$A$8:$B$15,2,FALSE),"") -> 
A120: 115 | O120: =IFERROR(VLOOKUP(M120,計算用!$A$8:$B$15,2,FALSE),"") -> 
A121: 116 | O121: =IFERROR(VLOOKUP(M121,計算用!$A$8:$B$15,2,FALSE),"") -> 
A122: 117 | O122: =IFERROR(VLOOKUP(M122,計算用!$A$8:$B$15,2,FALSE),"") -> 
A123: 118 | O123: =IFERROR(VLOOKUP(M123,計算用!$A$8:$B$15,2,FALSE),"") -> 
A124: 119 | O124: =IFERROR(VLOOKUP(M124,計算用!$A$8:$B$15,2,FALSE),"") -> 
A125: 120 | O125: =IFERROR(VLOOKUP(M125,計算用!$A$8:$B$15,2,FALSE),"") -> 
A126: 121 | O126: =IFERROR(VLOOKUP(M126,計算用!$A$8:$B$15,2,FALSE),"") -> 
A127: 122 | O127: =IFERROR(VLOOKUP(M127,計算用!$A$8:$B$15,2,FALSE),"") -> 
A128: 123 | O128: =IFERROR(VLOOKUP(M128,計算用!$A$8:$B$15,2,FALSE),"") -> 
A129: 124 | O129: =IFERROR(VLOOKUP(M129,計算用!$A$8:$B$15,2,FALSE),"") -> 
A130: 125 | O130: =IFERROR(VLOOKUP(M130,計算用!$A$8:$B$15,2,FALSE),"") -> 
A131: 126 | O131: =IFERROR(VLOOKUP(M131,計算用!$A$8:$B$15,2,FALSE),"") -> 
A132: 127 | O132: =IFERROR(VLOOKUP(M132,計算用!$A$8:$B$15,2,FALSE),"") -> 
A133: 128 | O133: =IFERROR(VLOOKUP(M133,計算用!$A$8:$B$15,2,FALSE),"") -> 
A134: 129 | O134: =IFERROR(VLOOKUP(M134,計算用!$A$8:$B$15,2,FALSE),"") -> 
A135: 130 | F135: =IF(E135="","",COUNTIF($E$6:$E$1385,E135)) ->  | O135: =IFERROR(VLOOKUP(M135,計算用!$A$8:$B$15,2,FALSE),"") -> 
A136: 131 | O136: =IFERROR(VLOOKUP(M136,計算用!$A$8:$B$15,2,FALSE),"") -> 
A137: 132 | O137: =IFERROR(VLOOKUP(M137,計算用!$A$8:$B$15,2,FALSE),"") -> 
A138: 133 | O138: =IFERROR(VLOOKUP(M138,計算用!$A$8:$B$15,2,FALSE),"") -> 
A139: 134 | O139: =IFERROR(VLOOKUP(M139,計算用!$A$8:$B$15,2,FALSE),"") -> 
A140: 135 | O140: =IFERROR(VLOOKUP(M140,計算用!$A$8:$B$15,2,FALSE),"") -> 
A141: 136 | O141: =IFERROR(VLOOKUP(M141,計算用!$A$8:$B$15,2,FALSE),"") -> 
A142: 137 | O142: =IFERROR(VLOOKUP(M142,計算用!$A$8:$B$15,2,FALSE),"") -> 
A143: 138 | O143: =IFERROR(VLOOKUP(M143,計算用!$A$8:$B$15,2,FALSE),"") -> 
A144: 139 | O144: =IFERROR(VLOOKUP(M144,計算用!$A$8:$B$15,2,FALSE),"") -> 
A145: 140 | O145: =IFERROR(VLOOKUP(M145,計算用!$A$8:$B$15,2,FALSE),"") -> 
A146: 141 | O146: =IFERROR(VLOOKUP(M146,計算用!$A$8:$B$15,2,FALSE),"") -> 
A147: 142 | O147: =IFERROR(VLOOKUP(M147,計算用!$A$8:$B$15,2,FALSE),"") -> 
A148: 143 | O148: =IFERROR(VLOOKUP(M148,計算用!$A$8:$B$15,2,FALSE),"") -> 
A149: 144 | O149: =IFERROR(VLOOKUP(M149,計算用!$A$8:$B$15,2,FALSE),"") -> 
A150: 145 | O150: =IFERROR(VLOOKUP(M150,計算用!$A$8:$B$15,2,FALSE),"") -> 
A151: =ROW()-5 -> 146 | O151: =IFERROR(VLOOKUP(M151,計算用!$A$8:$B$15,2,FALSE),"") ->  | S151: =IF(F151>=2,"","可") -> 
A152: 147 | E152: =B152&C152&D152 ->  | O152: =IFERROR(VLOOKUP(M152,計算用!$A$8:$B$15,2,FALSE),"") -> 
A153: 148 | O153: =IFERROR(VLOOKUP(M153,計算用!$A$8:$B$15,2,FALSE),"") -> 
A154: 149 | O154: =IFERROR(VLOOKUP(M154,計算用!$A$8:$B$15,2,FALSE),"") -> 
A155: 150 | O155: =IFERROR(VLOOKUP(M155,計算用!$A$8:$B$15,2,FALSE),"") -> 
A156: 151 | O156: =IFERROR(VLOOKUP(M156,計算用!$A$8:$B$15,2,FALSE),"") -> 
A157: 152 | O157: =IFERROR(VLOOKUP(M157,計算用!$A$8:$B$15,2,FALSE),"") -> 
A158: 153 | O158: =IFERROR(VLOOKUP(M158,計算用!$A$8:$B$15,2,FALSE),"") -> 
A159: 154 | M159: =K159&L159 ->  | O159: =IFERROR(VLOOKUP(M159,計算用!$A$8:$B$15,2,FALSE),"") -> 
A160: 155 | O160: =IFERROR(VLOOKUP(M160,計算用!$A$8:$B$15,2,FALSE),"") -> 
A161: 156 | O161: =IFERROR(VLOOKUP(M161,計算用!$A$8:$B$15,2,FALSE),"") -> 
A162: 157 | O162: =IFERROR(VLOOKUP(M162,計算用!$A$8:$B$15,2,FALSE),"") -> 
A163: 158 | O163: =IFERROR(VLOOKUP(M163,計算用!$A$8:$B$15,2,FALSE),"") -> 
A164: 159 | O164: =IFERROR(VLOOKUP(M164,計算用!$A$8:$B$15,2,FALSE),"") -> 
A165: 160 | O165: =IFERROR(VLOOKUP(M165,計算用!$A$8:$B$15,2,FALSE),"") -> 
A166: 161 | O166: =IFERROR(VLOOKUP(M166,計算用!$A$8:$B$15,2,FALSE),"") -> 
A167: 162 | O167: =IFERROR(VLOOKUP(M167,計算用!$A$8:$B$15,2,FALSE),"") -> 
A168: 163 | O168: =IFERROR(VLOOKUP(M168,計算用!$A$8:$B$15,2,FALSE),"") -> 
A169: 164 | O169: =IFERROR(VLOOKUP(M169,計算用!$A$8:$B$15,2,FALSE),"") -> 
A170: 165 | O170: =IFERROR(VLOOKUP(M170,計算用!$A$8:$B$15,2,FALSE),"") -> 
A171: 166 | O171: =IFERROR(VLOOKUP(M171,計算用!$A$8:$B$15,2,FALSE),"") -> 
A172: 167 | O172: =IFERROR(VLOOKUP(M172,計算用!$A$8:$B$15,2,FALSE),"") -> 
A173: 168 | O173: =IFERROR(VLOOKUP(M173,計算用!$A$8:$B$15,2,FALSE),"") -> 
A174: 169 | O174: =IFERROR(VLOOKUP(M174,計算用!$A$8:$B$15,2,FALSE),"") -> 
A175: 170 | F175: =IF(E175="","",COUNTIF($E$6:$E$1385,E175)) ->  | O175: =IFERROR(VLOOKUP(M175,計算用!$A$8:$B$15,2,FALSE),"") -> 
A176: 171 | O176: =IFERROR(VLOOKUP(M176,計算用!$A$8:$B$15,2,FALSE),"") -> 
A177: 172 | O177: =IFERROR(VLOOKUP(M177,計算用!$A$8:$B$15,2,FALSE),"") -> 
A178: 173 | O178: =IFERROR(VLOOKUP(M178,計算用!$A$8:$B$15,2,FALSE),"") -> 
A179: 174 | O179: =IFERROR(VLOOKUP(M179,計算用!$A$8:$B$15,2,FALSE),"") -> 
A180: 175 | O180: =IFERROR(VLOOKUP(M180,計算用!$A$8:$B$15,2,FALSE),"") -> 
A181: 176 | O181: =IFERROR(VLOOKUP(M181,計算用!$A$8:$B$15,2,FALSE),"") -> 
A182: 177 | O182: =IFERROR(VLOOKUP(M182,計算用!$A$8:$B$15,2,FALSE),"") -> 
A183: 178 | O183: =IFERROR(VLOOKUP(M183,計算用!$A$8:$B$15,2,FALSE),"") -> 
A184: 179 | O184: =IFERROR(VLOOKUP(M184,計算用!$A$8:$B$15,2,FALSE),"") -> 
A185: 180 | O185: =IFERROR(VLOOKUP(M185,計算用!$A$8:$B$15,2,FALSE),"") -> 
A186: 181 | O186: =IFERROR(VLOOKUP(M186,計算用!$A$8:$B$15,2,FALSE),"") -> 
A187: 182 | O187: =IFERROR(VLOOKUP(M187,計算用!$A$8:$B$15,2,FALSE),"") -> 
A188: 183 | O188: =IFERROR(VLOOKUP(M188,計算用!$A$8:$B$15,2,FALSE),"") -> 
A189: 184 | O189: =IFERROR(VLOOKUP(M189,計算用!$A$8:$B$15,2,FALSE),"") -> 
A190: 185 | O190: =IFERROR(VLOOKUP(M190,計算用!$A$8:$B$15,2,FALSE),"") -> 
A191: 186 | O191: =IFERROR(VLOOKUP(M191,計算用!$A$8:$B$15,2,FALSE),"") ->  | S191: =IF(F191>=2,"","可") -> 
A192: 187 | E192: =B192&C192&D192 ->  | O192: =IFERROR(VLOOKUP(M192,計算用!$A$8:$B$15,2,FALSE),"") -> 
A193: 188 | O193: =IFERROR(VLOOKUP(M193,計算用!$A$8:$B$15,2,FALSE),"") -> 
A194: 189 | O194: =IFERROR(VLOOKUP(M194,計算用!$A$8:$B$15,2,FALSE),"") -> 
A195: 190 | O195: =IFERROR(VLOOKUP(M195,計算用!$A$8:$B$15,2,FALSE),"") -> 
A196: 191 | O196: =IFERROR(VLOOKUP(M196,計算用!$A$8:$B$15,2,FALSE),"") -> 
A197: 192 | O197: =IFERROR(VLOOKUP(M197,計算用!$A$8:$B$15,2,FALSE),"") -> 
A198: 193 | O198: =IFERROR(VLOOKUP(M198,計算用!$A$8:$B$15,2,FALSE),"") -> 
A199: 194 | M199: =K199&L199 ->  | O199: =IFERROR(VLOOKUP(M199,計算用!$A$8:$B$15,2,FALSE),"") -> 
A200: 195 | O200: =IFERROR(VLOOKUP(M200,計算用!$A$8:$B$15,2,FALSE),"") -> 
A201: 196 | O201: =IFERROR(VLOOKUP(M201,計算用!$A$8:$B$15,2,FALSE),"") -> 
... 304 more rows

Sheet 実績額一覧
A1: 事業所・施設別実績額一覧（サービス別一覧）
A3: No. | B3: 介護保険 事業所番号 | C3: 事業所・施設名 | D3: サービス種別 | E3: 事業所の 電話番号 | F3: 事業所の 郵便番号 | G3: 事業所の住所 | H3: 法人名 | I3: 実績額（千円）
I4: 介護 慰労金 | J4: 感染対策 費用助成 事業 | K4: 個別再開 支援助成 事業 | L4: 再開環境 整備助成 事業 | M4: 小計 | AJ4: 20万 | AK4: 5万
A5: =ROW()-4 -> 1 | B5: =IFERROR(INDIRECT("個票"&$A5&"！$h$7"),"") -> 0420123456 | C5: =IFERROR(INDIRECT("個票"&$A5&"！$t$7"),"") -> 特別養護老人ホーム長寿社会政策課 | D5: =IFERROR(INDIRECT("個票"&$A5&"！$h$10"),"") -> 介護老人福祉施設 | E5: =IFERROR(INDIRECT("個票"&$A5&"！$AC$9"),"") -> 022-211-2549 | F5: =IFERROR(INDIRECT("個票"&$A5&"！$d$9"),"") -> 980-8570 | G5: =IFERROR(INDIRECT("個票"&$A5&"！$H$9")&INDIRECT("個票"&$A5&"！$L$9"),"") -> 宮城県仙台市青葉区本町３丁目８－１ | H5: =IF(M5>0,実績報告書!$W$8,"") -> 社会福祉法人宮城県 | I5: =IFERROR(INDIRECT("個票"&$A5&"！$ag$17"),"") -> 151 | J5: =IFERROR(INDIRECT("個票"&$A5&"！$ag$22"),"") -> 1529 | K5: =IFERROR(INDIRECT("個票"&$A5&"！$ag$37"),"") -> 0 | L5: =IFERROR(INDIRECT("個票"&$A5&"！$ag$47"),"") -> 0 | M5: =SUM(I5,J5,K5,L5) -> 1680 | P5: =IF(_xlfn.SHEETS()-6=COUNTIF(M5:M107,">0"),"○","！（本表の事業所数と個票の枚数が一致しません）") -> ○ | AJ5: =IFERROR(INDIRECT("個票"&$A5&"！$m$19"),"") -> 0 | AK5: =IFERROR(INDIRECT("個票"&$A5&"！$v$19"),"") -> 3 | AL5: =IFERROR(INDIRECT("個票"&$A5&"！$m$19"),"") -> 0 | AM5: =IFERROR(INDIRECT("個票"&$A5&"！$m$19"),"") -> 0
A6: =ROW()-4 -> 2 | B6: =IFERROR(INDIRECT("個票"&$A6&"！$h$7"),"") -> 0420123999 | C6: 居宅介護支援事業所長寿社会政策課 | D6: 居宅介護支援事業所 | E6: 022-211-2549 | F6: 980-8570 | G6: 宮城県仙台市青葉区本町３丁目８－１ | H6: =IF(M6>0,実績報告書!$W$8,"") -> 社会福祉法人宮城県 | I6: =IFERROR(INDIRECT("個票"&$A6&"！$ag$17"),"") -> 100 | J6: =IFERROR(INDIRECT("個票"&$A6&"！$ag$22"),"") -> 177 | K6: =IFERROR(INDIRECT("個票"&$A6&"！$ag$37"),"") -> 19.5 | L6: =IFERROR(INDIRECT("個票"&$A6&"！$ag$47"),"") -> 152 | M6: 448.5 | AJ6: =IFERROR(INDIRECT("個票"&$A6&"！$m$19"),"") -> 0 | AK6: =IFERROR(INDIRECT("個票"&$A6&"！$v$19"),"") -> 2 | AL6: =IFERROR(INDIRECT("個票"&$A6&"！$m$18"),"") -> 0 | AM6: =IFERROR(INDIRECT("個票"&$A6&"！$v$18"),"") -> 0
A7: 3 | H7: =IF(M7>0,実績報告書!$W$8,"") ->  | M7: 0
A8: 4 | H8: =IF(M8>0,実績報告書!$W$8,"") ->  | M8: 0
A9: 5 | H9: =IF(M9>0,実績報告書!$W$8,"") ->  | M9: 0
A10: 6 | H10: =IF(M10>0,実績報告書!$W$8,"") ->  | M10: 0
A11: 7 | H11: =IF(M11>0,実績報告書!$W$8,"") ->  | M11: 0
A12: 8 | H12: =IF(M12>0,実績報告書!$W$8,"") ->  | M12: 0
A13: 9 | H13: =IF(M13>0,実績報告書!$W$8,"") ->  | M13: 0
A14: 10 | H14: =IF(M14>0,実績報告書!$W$8,"") ->  | M14: 0
A15: 11 | H15: =IF(M15>0,実績報告書!$W$8,"") ->  | M15: 0
A16: 12 | H16: =IF(M16>0,実績報告書!$W$8,"") ->  | M16: 0
A17: 13 | H17: =IF(M17>0,実績報告書!$W$8,"") ->  | M17: 0
A18: 14 | H18: =IF(M18>0,実績報告書!$W$8,"") ->  | M18: 0
A19: 15 | H19: =IF(M19>0,実績報告書!$W$8,"") ->  | M19: 0
A20: 16 | H20: =IF(M20>0,実績報告書!$W$8,"") ->  | M20: 0
A21: 17 | H21: =IF(M21>0,実績報告書!$W$8,"") ->  | M21: 0
A22: 18 | H22: =IF(M22>0,実績報告書!$W$8,"") ->  | M22: 0
A23: 19 | H23: =IF(M23>0,実績報告書!$W$8,"") ->  | M23: 0
A24: 20 | H24: =IF(M24>0,実績報告書!$W$8,"") ->  | M24: 0
A25: 21 | H25: =IF(M25>0,実績報告書!$W$8,"") ->  | M25: 0
A26: 22 | H26: =IF(M26>0,実績報告書!$W$8,"") ->  | M26: 0
A27: 23 | H27: =IF(M27>0,実績報告書!$W$8,"") ->  | M27: 0
A28: 24 | H28: =IF(M28>0,実績報告書!$W$8,"") ->  | M28: 0
A29: 25 | H29: =IF(M29>0,実績報告書!$W$8,"") ->  | M29: 0
A30: =ROW()-4 -> 26 | B30: =IFERROR(INDIRECT("個票"&$A30&"！$h$7"),"") ->  | H30: =IF(M30>0,実績報告書!$W$8,"") ->  | M30: 0 | AL30: =IFERROR(INDIRECT("個票"&$A30&"！$m$18"),"") ->  | AM30: =IFERROR(INDIRECT("個票"&$A30&"！$v$18"),"") -> 
A31: 27 | H31: =IF(M31>0,実績報告書!$W$8,"") ->  | M31: 0
A32: 28 | H32: =IF(M32>0,実績報告書!$W$8,"") ->  | M32: 0
A33: 29 | H33: =IF(M33>0,実績報告書!$W$8,"") ->  | M33: 0
A34: 30 | H34: =IF(M34>0,実績報告書!$W$8,"") ->  | M34: 0
A35: 31 | H35: =IF(M35>0,実績報告書!$W$8,"") ->  | M35: 0
A36: 32 | H36: =IF(M36>0,実績報告書!$W$8,"") ->  | M36: 0
A37: 33 | H37: =IF(M37>0,実績報告書!$W$8,"") ->  | M37: =SUM(I37,J37,K37,L37) -> 0
A38: 34 | H38: =IF(M38>0,実績報告書!$W$8,"") ->  | M38: 0
A39: 35 | H39: =IF(M39>0,実績報告書!$W$8,"") ->  | M39: 0
A40: 36 | H40: =IF(M40>0,実績報告書!$W$8,"") ->  | M40: 0
A41: 37 | H41: =IF(M41>0,実績報告書!$W$8,"") ->  | M41: 0
A42: 38 | H42: =IF(M42>0,実績報告書!$W$8,"") ->  | M42: 0
A43: 39 | H43: =IF(M43>0,実績報告書!$W$8,"") ->  | M43: 0
A44: 40 | H44: =IF(M44>0,実績報告書!$W$8,"") ->  | M44: 0
A45: 41 | H45: =IF(M45>0,実績報告書!$W$8,"") ->  | M45: 0
A46: 42 | H46: =IF(M46>0,実績報告書!$W$8,"") ->  | M46: 0
A47: 43 | H47: =IF(M47>0,実績報告書!$W$8,"") ->  | M47: 0
A48: 44 | H48: =IF(M48>0,実績報告書!$W$8,"") ->  | M48: 0
A49: 45 | H49: =IF(M49>0,実績報告書!$W$8,"") ->  | M49: 0
A50: 46 | H50: =IF(M50>0,実績報告書!$W$8,"") ->  | M50: 0
A51: 47 | H51: =IF(M51>0,実績報告書!$W$8,"") ->  | M51: 0
A52: 48 | H52: =IF(M52>0,実績報告書!$W$8,"") ->  | M52: 0
A53: 49 | H53: =IF(M53>0,実績報告書!$W$8,"") ->  | M53: 0
A54: 50 | H54: =IF(M54>0,実績報告書!$W$8,"") ->  | M54: 0
A55: =ROW()-4 -> 51 | B55: =IFERROR(INDIRECT("個票"&$A55&"！$h$7"),"") ->  | H55: =IF(M55>0,実績報告書!$W$8,"") ->  | M55: 0 | AL55: =IFERROR(INDIRECT("個票"&$A55&"！$m$18"),"") ->  | AM55: =IFERROR(INDIRECT("個票"&$A55&"！$v$18"),"") -> 
A56: 52 | H56: =IF(M56>0,実績報告書!$W$8,"") ->  | M56: 0
A57: 53 | H57: =IF(M57>0,実績報告書!$W$8,"") ->  | M57: 0
A58: 54 | H58: =IF(M58>0,実績報告書!$W$8,"") ->  | M58: 0
A59: 55 | H59: =IF(M59>0,実績報告書!$W$8,"") ->  | M59: 0
A60: 56 | H60: =IF(M60>0,実績報告書!$W$8,"") ->  | M60: 0
A61: 57 | H61: =IF(M61>0,実績報告書!$W$8,"") ->  | M61: 0
A62: 58 | H62: =IF(M62>0,実績報告書!$W$8,"") ->  | M62: 0
A63: 59 | H63: =IF(M63>0,実績報告書!$W$8,"") ->  | M63: 0
A64: 60 | H64: =IF(M64>0,実績報告書!$W$8,"") ->  | M64: 0
A65: 61 | H65: =IF(M65>0,実績報告書!$W$8,"") ->  | M65: 0
A66: 62 | H66: =IF(M66>0,実績報告書!$W$8,"") ->  | M66: 0
A67: 63 | H67: =IF(M67>0,実績報告書!$W$8,"") ->  | M67: 0
A68: 64 | H68: =IF(M68>0,実績報告書!$W$8,"") ->  | M68: 0
A69: 65 | C69: =IFERROR(INDIRECT("個票"&$A69&"！$t$7"),"") ->  | D69: =IFERROR(INDIRECT("個票"&$A69&"！$h$10"),"") ->  | E69: =IFERROR(INDIRECT("個票"&$A69&"！$AC$9"),"") ->  | F69: =IFERROR(INDIRECT("個票"&$A69&"！$d$9"),"") ->  | G69: =IFERROR(INDIRECT("個票"&$A69&"！$H$9")&INDIRECT("個票"&$A69&"！$L$9"),"") ->  | H69: =IF(M69>0,実績報告書!$W$8,"") ->  | M69: =SUM(I69,J69,K69,L69) -> 0
A70: =ROW()-4 -> 66 | B70: =IFERROR(INDIRECT("個票"&$A70&"！$h$7"),"") ->  | H70: =IF(M70>0,実績報告書!$W$8,"") ->  | I70: =IFERROR(INDIRECT("個票"&$A70&"！$ag$17"),"") ->  | J70: =IFERROR(INDIRECT("個票"&$A70&"！$ag$22"),"") ->  | K70: =IFERROR(INDIRECT("個票"&$A70&"！$ag$37"),"") ->  | L70: =IFERROR(INDIRECT("個票"&$A70&"！$ag$47"),"") ->  | M70: 0 | AJ70: =IFERROR(INDIRECT("個票"&$A70&"！$m$19"),"") ->  | AK70: =IFERROR(INDIRECT("個票"&$A70&"！$v$19"),"") -> 
A71: 67 | H71: =IF(M71>0,実績報告書!$W$8,"") ->  | M71: 0
A72: 68 | H72: =IF(M72>0,実績報告書!$W$8,"") ->  | M72: 0
A73: 69 | H73: =IF(M73>0,実績報告書!$W$8,"") ->  | M73: 0
A74: 70 | H74: =IF(M74>0,実績報告書!$W$8,"") ->  | M74: 0
A75: 71 | H75: =IF(M75>0,実績報告書!$W$8,"") ->  | M75: 0
A76: 72 | H76: =IF(M76>0,実績報告書!$W$8,"") ->  | M76: 0
A77: 73 | H77: =IF(M77>0,実績報告書!$W$8,"") ->  | M77: 0
A78: 74 | H78: =IF(M78>0,実績報告書!$W$8,"") ->  | M78: 0
A79: 75 | H79: =IF(M79>0,実績報告書!$W$8,"") ->  | M79: 0
A80: =ROW()-4 -> 76 | B80: =IFERROR(INDIRECT("個票"&$A80&"！$h$7"),"") ->  | H80: =IF(M80>0,実績報告書!$W$8,"") ->  | M80: 0 | AL80: =IFERROR(INDIRECT("個票"&$A80&"！$m$18"),"") ->  | AM80: =IFERROR(INDIRECT("個票"&$A80&"！$v$18"),"") -> 
A81: 77 | H81: =IF(M81>0,実績報告書!$W$8,"") ->  | M81: 0
A82: 78 | H82: =IF(M82>0,実績報告書!$W$8,"") ->  | M82: 0
A83: 79 | H83: =IF(M83>0,実績報告書!$W$8,"") ->  | M83: 0
A84: 80 | H84: =IF(M84>0,実績報告書!$W$8,"") ->  | M84: 0
A85: 81 | H85: =IF(M85>0,実績報告書!$W$8,"") ->  | M85: 0
A86: 82 | H86: =IF(M86>0,実績報告書!$W$8,"") ->  | M86: 0
A87: 83 | H87: =IF(M87>0,実績報告書!$W$8,"") ->  | M87: 0
A88: 84 | H88: =IF(M88>0,実績報告書!$W$8,"") ->  | M88: 0
A89: 85 | H89: =IF(M89>0,実績報告書!$W$8,"") ->  | M89: 0
A90: 86 | H90: =IF(M90>0,実績報告書!$W$8,"") ->  | M90: 0
A91: 87 | H91: =IF(M91>0,実績報告書!$W$8,"") ->  | M91: 0
A92: 88 | H92: =IF(M92>0,実績報告書!$W$8,"") ->  | M92: 0
A93: 89 | H93: =IF(M93>0,実績報告書!$W$8,"") ->  | M93: 0
A94: 90 | H94: =IF(M94>0,実績報告書!$W$8,"") ->  | M94: 0
A95: 91 | H95: =IF(M95>0,実績報告書!$W$8,"") ->  | M95: 0
A96: 92 | H96: =IF(M96>0,実績報告書!$W$8,"") ->  | M96: 0
A97: 93 | H97: =IF(M97>0,実績報告書!$W$8,"") ->  | M97: 0
A98: 94 | H98: =IF(M98>0,実績報告書!$W$8,"") ->  | M98: 0
A99: 95 | H99: =IF(M99>0,実績報告書!$W$8,"") ->  | M99: 0
A100: 96 | H100: =IF(M100>0,実績報告書!$W$8,"") ->  | M100: 0
A101: 97 | H101: =IF(M101>0,実績報告書!$W$8,"") ->  | M101: =SUM(I101,J101,K101,L101) -> 0
A102: 98 | H102: =IF(M102>0,実績報告書!$W$8,"") ->  | M102: =SUM(I102,J102,K102,L102) -> 0
A103: 99 | H103: =IF(M103>0,実績報告書!$W$8,"") ->  | M103: =SUM(I103,J103,K103,L103) -> 0
A104: 100 | H104: =IF(M104>0,実績報告書!$W$8,"") ->  | M104: =SUM(I104,J104,K104,L104) -> 0

Sheet 法人実績額内訳
A1: 法人実績額内訳
B2: （単位：千円）
B3: 実績額
A5: 介護慰労金事業 | B5: =SUM(実績額一覧!I5:I104) -> 251
A6: 感染症対策を徹底した上での 介護サービス提供支援事業 | B6: =SUM(実績額一覧!J5:J104) -> 1706
A7: 在宅サービス事業所による 利用者への再開支援への助成事業 | B7: =SUM(実績額一覧!K5:K104) -> 19.5
A8: 在宅サービス事業所における 環境整備への助成事業 | B8: =SUM(実績額一覧!L5:L104) -> 152
A9: 合計 | B9: =SUM(B5:B8) -> 2128.5

Sheet 計算用 (hidden)
H1: ※本シートは絶対に編集しないこと。
A2: 施設区分
A3: 陽性者(濃厚接触者)発生施設 | B3: 通所系･施設系で1日以上勤務又は訪問系で陽性者等に1日以上対応 | C3: 訪問系で陽性者等への対応はないが対象期間に10日以上勤務 | D3: 対象期間の勤務が９日以下
A4: その他の施設 | B4: 対象期間に10日以上勤務 | C4: 対象期間の勤務が9日以下
A7: 慰労金単価
A8: =A3&B3 -> 陽性者(濃厚接触者)発生施設通所系･施設系で1日以上勤務又は訪問系で陽性者等に1日以上対応 | B8: 20
A9: =A3&C3 -> 陽性者(濃厚接触者)発生施設訪問系で陽性者等への対応はないが対象期間に10日以上勤務 | B9: 5
A10: =A3&D3 -> 陽性者(濃厚接触者)発生施設対象期間の勤務が９日以下 | B10: 0
A11: =A4&B4 -> その他の施設対象期間に10日以上勤務 | B11: 5
A12: =A4&C4 -> その他の施設対象期間の勤務が9日以下 | B12: 0
A14: 支払金額
A15: 50000
A16: 200000
A17: なし
A18: あり
A21: 北海道
A22: 青森県
A23: 岩手県
A24: 宮城県
A25: 秋田県
A26: 山形県
A27: 福島県
A28: 茨城県
A29: 栃木県
A30: 群馬県
A31: 埼玉県
A32: 千葉県
A33: 東京都
A34: 神奈川県
A35: 新潟県
A36: 富山県
A37: 石川県
A38: 福井県
A39: 山梨県
A40: 長野県
A41: 岐阜県
A42: 静岡県
A43: 愛知県
A44: 三重県
A45: 滋賀県
A46: 京都府
A47: 大阪府
A48: 兵庫県
A49: 奈良県
A50: 和歌山県
A51: 鳥取県
A52: 島根県
A53: 岡山県
A54: 広島県
A55: 山口県
A56: 徳島県
A57: 香川県
A58: 愛媛県
A59: 高知県
A60: 福岡県
A61: 佐賀県
A62: 長崎県
A63: 熊本県
A64: 大分県
A65: 宮崎県
A66: 鹿児島県
A67: 沖縄県
